Cogmind - Beta 14 @@@ ROGUE MODE // 2024.09.08 @ 14:20:00 Player: Minty Result: Self-destructed Performance ------------- Evolutions (9) 4500 Regions Visited (31) 6200 Robots Destroyed (247) 1235 Value Destroyed (14351) 14351 Prototype IDs (68) 1360 Alien Tech Used (2) 400 Bonus (8839) 8839 TOTAL SCORE: 36885 Bonus ------- High Alert Combat Kills 1625 Follower Combat Kills 1160 Entered Garrisons 1800 Used RIF Installer 3500 Entered DSFs 500 Aligned with FarCom 300 Met Zhirov 300 Friendly Fire -346 Cogmind --------- Core Integrity 1120/1600 Matter 199/300 Energy 26/100 System Corruption 1% Temperature Cool (0) Movement Core (400) Ox7 Location -1/Garrison Parts ------- > --- POWER (2) -------- (None) > --- PROPULSION (7) --- (None) > --- UTILITY (11) ----- Advanced Target Analyzer Centrium Heavy Armor Plating Advanced Hacking Suite Relay Coupler [Swarmer] (45) > --- WEAPON (5) ------- (None) > --- INVENTORY (5) ---- Enhanced Nova Cannon Enhanced Nova Cannon Peak State ------------ > --- POWER ------------ Heavy Antimatter Reactor Particle Reactor > --- PROPULSION ------- Medium Treads Flexi-carbon Leg Advanced Myomer Leg Wheel Compact Wheel Compact Wheel > --- UTILITY ---------- Large Storage Unit Advanced Energy Well Advanced Target Analyzer Improved Transmission Jammer Advanced Phase Shifter Advanced Thermal Defense Suite Advanced Force Field Advanced Hacking Suite Improved System Shield Advanced System Shield > --- WEAPON ----------- Enhanced Nova Cannon Enhanced Nova Cannon Enhanced Nova Cannon Enhanced Nova Cannon > --- INVENTORY -------- Neutrino Core Micro Fission Core Improved Gyrokinetic Inverter Improved Matter Compressor Quantum Rifle Quantum Rifle Enhanced Quantum Rifle Enhanced Quantum Rifle Enhanced Quantum Rifle Long-range Phase Cannon Long-range Missile Launcher Improved Datajack Improved Remote Datajack Kinetic Spear Kinetic Spear [Rating: 146] Favorites ----------- Power Neutrino Core Engine Cooled Ion Engine Power Core Neutrino Core Reactor Heavy Antimatter Reactor Propulsion VTOL Module Treads Improved Heavy Treads Leg Advanced Myomer Leg Wheel Compact Wheel Hover Unit Gravmag System Flight Unit VTOL Module Utility Advanced System Shield Device Advanced Cooling System Storage Medium Storage Unit Processor Advanced Target Analyzer Hackware Advanced System Shield Protection Improved Medium Armor Plating Weapon Precision Assault Rifle Energy Gun Particle Gun Energy Cannon Matter Neutralizer Ballistic Gun Precision Assault Rifle Ballistic Cannon Hardcell Cannon Launcher Mini Grenade Launcher Special Weapon Improved Remote Datajack Piercing Weapon Kinetic Spear Special Melee Weapon Improved Datajack Build | -11 -10 -10 -10 -9 -8 -8 -8 -8 -7 -7 -7 -7 -6 -6 -6 -6 -5 -5 -5 -5 -5 -4 -4 -4 -4 -3 -3 -2 -2 -1 -1 ------- Run | Yrd Mat Min Exi Min Mat Gar Mat Gar Fac Gar Fac Gar Fac Gar Fac DSF Fac Gar Fac Gar Fac Fac Upp Upp Zhi Pro Res Res Gar Acc Gar Slots Evolved 18 | . . . . . 4 . . . 2 . . . 2 . . . 2 . . . . 2 . . . . 2 2 . 2 . Power 1 | . . . . . . . . . . . . . . . . . . . . . . 1 . . . . . . . . . Propulsion 5 | . . . . . 2 . . . . . . . . . . . 1 . . . . . . . . . 1 1 . . . Utility 9 | . . . . . 2 . . . 2 . . . 1 . . . 1 . . . . 1 . . . . 1 . . 1 . Weapon 3 | . . . . . . . . . . . . . 1 . . . . . . . . . . . . . . 1 . 1 . Parts Attached 434 | . 20 6 . 1 10 13 30 22 10 29 6 11 29 14 6 16 14 50 2 5 22 25 . 5 12 9 22 10 28 1 6 Power 38 | . 3 . . . 4 3 5 . . 2 1 . 3 1 . 1 . 3 . . 1 2 . 2 1 . 3 . 3 . . Engine 15 | . 3 . . . 4 1 4 . . . . . 1 . . . . 1 . . . . . 1 . . . . . . . Core 19 | . . . . . . 2 1 . . 2 1 . 2 1 . 1 . 2 . . 1 2 . 1 . . 1 . 2 . . Reactor 4 | . . . . . . . . . . . . . . . . . . . . . . . . . 1 . 2 . 1 . . Propulsion 87 | . 5 2 . . 2 . 5 9 4 2 2 . 8 1 1 3 6 10 1 . 3 7 . . 3 2 1 4 6 . . Treads 20 | . 2 . . . . . . 2 . . . . . . . . . 8 1 . 2 4 . . . . . . 1 . . Leg 20 | . 1 . . . . . . 7 . . 1 . 3 . . . . 2 . . . . . . 3 2 1 . . . . Wheel 12 | . 2 . . . . . . . . 1 1 . . . . . . . . . 1 3 . . . . . 4 . . . Hover 10 | . . . . . . . 5 . 4 1 . . . . . . . . . . . . . . . . . . . . . Flight 25 | . . 2 . . 2 . . . . . . . 5 1 1 3 6 . . . . . . . . . . . 5 . . Utility 127 | . 6 3 . . 3 6 4 2 3 7 2 4 8 6 3 6 1 15 . 3 7 9 . 3 4 4 9 1 4 . 4 Device 24 | . 4 1 . . . 1 . . 1 . . . 2 1 . . . 1 . . 2 2 . 2 . . 3 1 3 . . Storage 12 | . 1 . . . . . 1 1 . 1 . . . . . . . . . . 1 . . 1 3 1 1 . 1 . . Processor 9 | . . . . . . 1 . . . 1 . . . . . 1 . 1 . . . 4 . . . 1 . . . . . Hackware 57 | . . 1 . . 1 4 3 1 2 4 2 2 4 5 3 5 1 10 . 2 . 2 . . 1 1 2 . . . 1 Protection 25 | . 1 1 . . 2 . . . . 1 . 2 2 . . . . 3 . 1 4 1 . . . 1 3 . . . 3 Artifact . | . . . . . . . . . . . . . . . . . . . . . . . . . . . . . . . . Weapon 182 | . 6 1 . 1 1 4 16 11 3 18 1 7 10 6 2 6 7 22 1 2 11 7 . . 4 3 9 5 15 1 2 Energy Gun 23 | . 6 . . . . . . . . . . . 7 . 1 1 . . . . . . . . . . 2 1 5 . . Energy Cannon 19 | . . . . . . . . . . . . 1 . . . . . 1 1 . 2 . . . . . 1 3 7 1 2 Ballistic Gun 56 | . . 1 . . 1 . 9 5 2 8 . . . 3 1 3 4 11 . . . 4 . . 3 1 . . . . . Ballistic Cannon 7 | . . . . . . . . . . . . . . . . . 1 1 . 1 4 . . . . . . . . . . Launcher 44 | . . . . . . 2 5 5 . 8 . 3 . . . . 2 5 . . 3 3 . . . 2 3 1 2 . . Special Weapon 19 | . . . . 1 . . . . . 1 . 3 . 3 . 2 . 4 . 1 2 . . . 1 . 1 . . . . Impact Weapon . | . . . . . . . . . . . . . . . . . . . . . . . . . . . . . . . . Slashing Weapon . | . . . . . . . . . . . . . . . . . . . . . . . . . . . . . . . . Piercing Weapon 3 | . . . . . . . . . . . . . . . . . . . . . . . . . . . 2 . 1 . . Special Melee Weapon 11 | . . . . . . 2 2 1 1 1 1 . 3 . . . . . . . . . . . . . . . . . . Unidentified Prototypes 21 | . . 1 . . 2 . 3 . . . . . . . 1 . 1 . . . . 3 . . 5 . 4 . . . 1 Corrupted Parts 5 | . . . . . . . . . . . . . 3 . . . . . . . . 2 . . . . . . . . . System Corruption 27 | . . . . . . . . . . . . . 18 . . . . . . . . 9 . . . . . . . . . Parts Lost 127 | . 6 5 . . 1 2 5 5 1 8 2 8 12 4 . 5 3 7 . 1 5 18 . . . 2 8 2 16 1 . Power 14 | . . 1 . . . 1 1 . . 1 1 1 1 1 . 1 . 1 . . 1 2 . . . . . . 1 . . Propulsion 51 | . 3 2 . . 1 . 2 5 . 4 1 3 3 2 . 1 3 4 . . 1 4 . . . . 3 1 8 . . Utility 40 | . 1 . . . . 1 1 . 1 1 . 3 3 1 . 3 . 2 . 1 3 9 . . . 1 3 . 6 . . Weapon 22 | . 2 2 . . . . 1 . . 2 . 1 5 . . . . . . . . 3 . . . 1 2 1 1 1 . Highest Loss Streak 9 | . 3 4 . . 1 2 4 2 1 4 1 3 3 2 . 4 2 4 . 1 4 9 . . . 1 7 2 6 1 . To Critical Strikes 1 | . . . . . . . . 1 . . . . . . . . . . . . . . . . . . . . . . . Average Slot Usage (%) 82 | . 88 76 71 71 89 84 89 90 95 83 81 72 57 92 83 88 87 85 82 81 78 66 78 84 85 97 87 94 66 12 9 Engine 2 | . 13 9 . . 9 . 3 9 7 1 . . . . . . . . . . . . . . 3 . . . . . . Core 3 | . . . . . . 2 3 . . 5 7 2 2 5 6 4 5 3 5 5 3 6 5 5 5 5 3 . . . . Treads 7 | . 16 19 . . . . . 3 . . . . . . . . . 14 17 17 10 6 15 15 13 5 . . 2 . . Leg 4 | . 8 . . . . . . 15 10 . 2 3 2 . . . . 1 . . . . . . 6 20 20 13 5 . . Wheel 2 | . 1 . . . . . . . . 2 7 7 . . . . . . . . 4 8 10 10 5 . . 13 7 . . Hover 2 | . . . . . . . 15 8 16 13 3 . . . . . . . . . . . . . . . . . . . . Flight 3 | . . 8 28 28 28 27 13 . . . . . 2 25 22 25 24 1 . . . . . . . . . . 2 . . Device 3 | . 8 9 . . . 4 . . 1 1 . . 1 3 . . . . 5 5 9 6 . . 5 . 3 8 10 . . Storage 5 | . 14 10 . . . . . 8 7 10 7 7 1 . . . . . . . 2 1 . 4 6 10 12 12 4 . . Processor 2 | . . . . . . 5 . . . 4 . . . . . . 5 1 5 5 . 4 15 15 13 5 4 4 4 4 4 Hackware 23 | . . 2 14 14 15 16 34 27 35 28 38 31 33 40 46 42 40 38 23 25 21 9 10 10 12 19 14 17 12 4 4 Protection 3 | . 2 4 14 14 18 9 . . . . . 4 2 . . . . 2 5 2 6 5 5 5 5 9 7 . . . . Energy Gun 2 | . 21 8 . . 2 . . . . . . . 6 7 . . . . . . . . . . . . 3 1 1 . . Energy Cannon 1 | . . . . . . . . . . . . 3 . . . . . . 9 11 8 . . . . . . 11 8 . . Ballistic Gun 7 | . . 2 14 14 15 9 14 15 11 12 . . . 2 7 12 9 14 1 . . 3 15 15 . 13 4 . . . . Launcher 1 | . . . . . . 6 . 1 1 1 7 3 . . . . . . . . 1 3 . . . . . . . . . Peak Build Rating 146 | . 12 15 14 23 27 35 38 35 45 48 40 44 50 54 52 61 75 97 92 92 92 85 74 88 122 125 136 134 146 29 40 Average Rating 59 | . 8 10 13 14 23 27 32 31 37 39 32 34 29 48 41 51 65 87 91 89 78 73 74 78 87 118 121 130 97 21 20 On Entrance 53 | 6 6 11 13 14 14 25 35 33 27 45 32 40 28 45 46 47 61 70 91 92 91 78 74 74 88 122 112 115 129 21 16 Naked Turns . | . . . . . . . . . . . . . . . . . . . . . . . . . . . . . . . . Heaviest Build 138 | 13 33 30 7 7 12 15 26 26 30 31 18 24 26 16 16 23 17 63 61 61 77 76 36 51 66 68 100 109 138 2 22 Greatest Support 180 | 20 40 40 8 8 17 13 26 50 45 34 44 44 30 16 18 18 22 180 175 172 172 54 32 32 90 90 118 80 50 3 3 Greatest Overweight (x) 8 | . 2 . . . . 1 2 3 1 2 1 6 7 1 . 1 1 7 . . 2 2 1 1 1 . 1 5 8 . 7 Average Overweight (x) . | . . . . . . . . . . . . 1 . . . . . . . . 1 . 1 1 . . . 1 1 . . Largest Inventory Capacity 15 | . 15 15 5 5 5 5 10 10 10 10 10 10 10 5 5 5 5 5 5 5 10 10 5 5 5 5 15 15 15 5 5 Average Capacity 8 | . 14 12 5 5 5 5 5 9 10 10 10 10 6 5 5 5 5 5 5 5 7 6 5 5 5 5 12 15 11 5 5 Most Carried 15 | . 15 15 5 5 5 5 8 10 10 10 10 10 10 5 5 5 5 5 5 5 10 10 4 5 5 5 9 13 15 4 4 Average Carried 7 | . 11 12 5 4 4 4 5 9 9 9 9 9 6 4 4 4 4 4 5 4 6 6 4 4 4 4 6 10 9 2 3 Final Capacity 15 | 8 15 5 5 5 5 5 10 10 10 10 10 10 5 5 5 5 5 5 5 5 10 5 5 5 5 5 15 15 5 5 5 Final Carried 15 | 6 15 5 5 5 5 5 8 10 10 10 10 10 5 5 5 5 5 5 5 4 10 4 4 5 5 5 9 10 2 4 2 Class Distribution -------------------- 12% | Bothacker-Mutant 10% | Mutant 10% | Hacker-Mutant 9% | Wizard-Skirmisher 8% | Botlord-Mutant 6% | Bothacker-Skirmisher 5% | Scavenger-Gunner 5% | Scavenger-Mutant 4% | Hacker-Tank 4% | Hacker-Skirmisher 3% | Botlord-Sprinter Dominant Class ---------------- Mutant | -10/Materials Mutant | -10/Mines Sprinter | -10/Exiles Sprinter | -9/Mines Hacker-Sprinter | -8/Materials Scout | -8/Garrison Hacker-Mutant | -8/Materials Bothacker-Mutant | -8/Garrison Bothacker-Mutant | -7/Factory Bothacker-Mutant | -7/Garrison Botlord-Mutant | -7/Factory Botlord-Mutant | -7/Garrison Bothacker-Mutant | -6/Factory Botlord-Sprinter | -6/Garrison Botlord-Sprinter | -6/Factory Wizard-Sprinter | -6/DSF Wizard-Sprinter | -5/Factory Wizard-Skirmisher | -5/Garrison Bothacker-Skirmisher | -5/Factory Bothacker-Skirmisher | -5/Garrison Botlord-Skirmisher | -5/Factory Tank | -4/Factory Scavenger-Gunner | -4/Upper Caves Scavenger-Gunner | -4/Upper Caves Scavenger-Mutant | -4/Zhirov Hacker-Tank | -3/Proximity Caves Hacker-Mutant | -3/Research Hacker-Skirmisher | -2/Research Hacker-Tank | -2/Garrison Mutant | -1/Access Mutant | -1/Garrison Resources | -11 -10 -10 -10 -9 -8 -8 -8 -8 -7 -7 -7 -7 -6 -6 -6 -6 -5 -5 -5 -5 -5 -4 -4 -4 -4 -3 -3 -2 -2 -1 -1 ----------- Run | Yrd Mat Min Exi Min Mat Gar Mat Gar Fac Gar Fac Gar Fac Gar Fac DSF Fac Gar Fac Gar Fac Fac Upp Upp Zhi Pro Res Res Gar Acc Gar Matter Collected 9929 | 200 282 176 . 10 155 351 618 545 487 338 98 206 515 225 107 80 511 1550 . 231 302 1003 266 156 . 528 625 26 249 89 . Remotely 920 | . . . . . . . . . . . . . . . . . . . . . . 920 . . . . . . . . . Salvage Created 10825 | . 544 116 . . 161 522 540 651 427 468 18 271 315 120 . . 780 1823 . 85 352 1181 356 292 . 338 1094 26 345 . . Parts 512 | . 32 10 . . 18 20 30 39 27 27 3 18 10 6 . . 34 80 . 2 8 64 6 6 . 7 43 4 18 . . Haulers Intercepted 8 | . 1 . . . 2 . 2 . . . . . . . . . 1 . . . . 1 . . . . 1 . . . . Recyclers Shooed 13 | . 1 . . . . . . . 1 . . . . . . . 4 . . . 2 2 . . . . 3 . . . . Parts Field Recycled . | . . . . . . . . . . . . . . . . . . . . . . . . . . . . . . . . Retrieved Matter . | . . . . . . . . . . . . . . . . . . . . . . . . . . . . . . . . Parts Self-Destructed 17 | . . . . . . . . . . . . . . . . . . . . . . . 7 4 . 6 . . . . . Prevented 2 | . . . . . . . . . . . . . . . . . . . . . . . 2 . . . . . . . . Kills | -11 -10 -10 -10 -9 -8 -8 -8 -8 -7 -7 -7 -7 -6 -6 -6 -6 -5 -5 -5 -5 -5 -4 -4 -4 -4 -3 -3 -2 -2 -1 -1 ------- Run | Yrd Mat Min Exi Min Mat Gar Mat Gar Fac Gar Fac Gar Fac Gar Fac DSF Fac Gar Fac Gar Fac Fac Upp Upp Zhi Pro Res Res Gar Acc Gar Combat Hostiles Destroyed 203 | . 9 7 . . 1 15 9 16 6 17 . 13 8 5 . . 7 26 . 2 6 20 3 1 . 8 13 . 11 . . Melee 6 | . . . . . . . . . . . . . . . . . 1 . . . . . . . . . 5 . . . . Guns 86 | . 9 7 . . 1 6 7 8 6 5 . . 7 5 . . 2 12 . . . 5 3 1 . 1 1 . . . . Cannons 19 | . . . . . . . . . . . . 3 . . . . . 1 . 2 4 7 . . . . 1 . 1 . . AOE 89 | . . . . . . 9 2 8 . 12 . 10 . . . . 4 13 . . 1 8 . . . 7 5 . 10 . . Classes Destroyed 20 | . 6 1 . . 2 1 1 2 2 . . . . . . . . 1 . 1 1 . 1 . . . . . 1 . . Worker 6 | . . . . . . . . . 1 . . . . . . . . . . . . 3 . . . . 2 . . . . Builder 10 | . 2 . . . . . . . 2 . . . . . . . 1 . . . . 4 . . . . . 1 . . . Tunneler 2 | . . . . . 1 . . . . . . . . . . . 1 . . . . . . . . . . . . . . Hauler 8 | . 1 . . . 2 . 2 . . . . . . . . . 1 . . . . 1 . . . . 1 . . . . Recycler 8 | . 1 . . . . . . . 1 . . . . . . . 3 . . . 1 1 . . . . 1 . . . . Operator 5 | . 1 . . . . . 1 . . . . . . . . . . . . . 1 . . . . . 2 . . . . Watcher 4 | . 1 . . . . . . . . . 1 . . . . . . . . . . 2 . . . . . . . . . Swarmer 57 | . . 6 . . . . . 3 . 7 . 10 4 4 . . 5 12 . . . . . . . . 1 . 5 . . Cutter 4 | . . . . . . . . . . . . . . . . . . . . . . . . . . . . . 4 . . Grunt 93 | . 9 1 . . . 14 7 8 3 7 . 1 4 . . . 2 7 . . 2 12 3 . . 8 4 . 1 . . Brawler 3 | . . . . . . 1 1 1 . . . . . . . . . . . . . . . . . . . . . . . Duelist 1 | . . . . . . . . 1 . . . . . . . . . . . . . . . . . . . . . . . Sentry 15 | . . . . . 1 . 1 1 . 1 . . . . . . . 3 . 1 1 2 . 1 . . 2 . 1 . . Specialist 2 | . . . . . . . . . . . . . . . . . . . . . 2 . . . . . . . . . . Hunter 10 | . . . . . . . . 2 2 . . . . . . . . 2 . . . . . . . . 4 . . . . Programmer 15 | . . . . . . . . . 1 2 . 2 . 1 . . . 1 . . . 6 . . . . 2 . . . . Heavy 1 | . . . . . . . 1 . . . . . . . . . . . . . . . . . . . . . . . . Behemoth 2 | . . . . . . . . . . . . . . . . . . 1 . . 1 . . . . . . . . . . Striker 1 | . . . . . . . . . . . . . . . . . . . . 1 . . . . . . . . . . . Packrat 1 | . . . . . . . . . . . . . . . . . . . . . . . 1 . . . . . . . . Samaritan 3 | . . . . . . . . . . . . . . . . . . . . . . . 1 1 . 1 . . . . . Best Kill Streak 11 | . 4 4 . . 3 6 5 3 3 7 1 11 4 3 . . 7 7 . 1 2 11 3 1 . 5 5 1 6 . . Combat Bots Only 11 | . 2 4 . . 1 6 5 3 2 7 . 11 4 3 . . 5 7 . 1 2 7 3 1 . 5 3 . 6 . . Max Kills in Single Turn 6 | . 1 1 . . 1 2 2 3 2 2 1 2 2 1 . . 4 6 . 1 1 2 1 1 . 2 3 1 3 . . Gunslinging 1 | . . . . . . . 1 . . . . . 1 . . . . . . . . . . . . . . . . . . Exploded 6 | . . . . . . 2 2 3 . 2 . 2 . . . . 3 6 . . 1 2 . . . 2 2 . 3 . . Melee 1 | . . . . . . . . . . . . . . . . . 1 . . . . . . . . . 1 . . . . Uniques/NPCs Destroyed . | . . . . . . . . . . . . . . . . . . . . . . . . . . . . . . . . Combat | -11 -10 -10 -10 -9 -8 -8 -8 -8 -7 -7 -7 -7 -6 -6 -6 -6 -5 -5 -5 -5 -5 -4 -4 -4 -4 -3 -3 -2 -2 -1 -1 -------- Run | Yrd Mat Min Exi Min Mat Gar Mat Gar Fac Gar Fac Gar Fac Gar Fac DSF Fac Gar Fac Gar Fac Fac Upp Upp Zhi Pro Res Res Gar Acc Gar Hostile Shots Fired 1511 | . 83 45 . . 10 23 58 58 16 86 9 71 87 41 . 7 46 113 . 24 108 188 30 4 . 50 191 15 108 24 16 Missed 460 | . 19 8 . . 5 9 21 16 1 36 5 22 20 18 . 2 18 27 . 5 40 56 13 . . 14 54 4 34 7 6 Damage Taken 20803 | . 876 463 . . 73 218 703 792 149 746 83 1045 1446 535 . 126 442 1643 . 695 1078 2717 337 98 . 746 2692 244 2240 381 235 Core 4755 | . 121 110 . . . 62 121 237 12 118 26 246 569 242 . 23 47 82 . 73 69 273 58 25 . 130 561 27 1043 355 125 Absorbed by Shields 250 | . . . . . . 27 . . . . . . . . . . . 21 . . . . . . . . . . 202 . . Reduced by Siege Mode 124 | . . . . . . . . . . . . . . . . . . 81 . 43 . . . . . . . . . . . Redirected to Shielding 167 | . . . . . . 9 . . . . . . . . . . . . . . . 106 . . . 52 . . . . . Ignored by Resistances 585 | . . . . . . . . . . . . . . . . . . 91 . 5 . 7 . . . . 298 112 72 . . Regen/Repaired (Parts) 334 | . . . . . . . 75 . 259 . . . . . . . . . . . . . . . . . . . . . . Core Remaining (%) 42 | 100 . . . 7 . . . 23 . . . 42 . . . 1 . . . . 72 . . . . 57 56 . 20 . . Volleys Fired 756 | . 71 21 . . 14 38 34 57 20 40 3 40 27 49 . 7 23 97 . 30 32 48 13 11 3 14 40 8 11 2 3 Largest 4 | . 2 2 . . 2 2 2 2 2 2 1 2 3 2 . 2 2 3 . 3 3 3 3 3 1 3 3 4 4 1 1 Hottest 480 | . 105 105 . . 56 66 58 58 56 58 30 95 178 138 . 66 79 203 . 260 260 157 90 90 7 106 169 409 480 120 120 Shots Fired 1357 | . 97 23 . . 20 57 57 101 39 72 3 44 43 81 . 11 40 220 . 72 64 85 39 35 3 28 74 18 26 2 3 Gun 956 | . 97 23 . . 20 39 50 87 39 56 . . 42 76 . 8 36 192 . . . 31 39 35 . 20 62 2 2 . . Cannon 244 | . . . . . . . . . . . . 26 . . . . 2 12 . 69 55 37 . . . . 7 13 18 2 3 Launcher 122 | . . . . . . 18 7 14 . 15 3 12 . . . . 2 9 . . 3 17 . . . 8 5 3 6 . . Special 35 | . . . . . . . . . . 1 . 6 1 5 . 3 . 7 . 3 6 . . . 3 . . . . . . Kinetic 776 | . . . . . 20 39 50 87 39 56 . . . 8 . 8 38 198 . 27 14 68 39 35 . 20 30 . . . . Thermal 398 | . 76 21 . . . . . . . . . 26 42 68 . . . 6 . 42 41 . . . . . 36 15 20 2 3 Explosive 115 | . . . . . . 18 7 14 . 15 3 12 . . . . 2 9 . . 3 10 . . . 8 5 3 6 . . Electromagnetic 33 | . 21 2 . . . . . . . . . . . . . . . . . . . 7 . . . . 3 . . . . Robot Hit Streak 31 | . 17 8 . . 8 7 10 31 7 21 . 9 5 26 . 4 5 30 . 8 16 10 3 14 4 10 8 4 9 . 8 Robot Miss Streak 5 | . 3 3 . . 3 2 3 2 4 1 1 4 5 2 . 4 3 3 . 3 2 3 3 4 . 2 4 1 1 . . Penetration Max 2 | . . . . . . . . . . . . . . . . . 2 1 . . . 1 . . . . 1 . . . . Secondary Targets 8 | . . . . . . . 1 . . . . . 1 2 . . 1 . . . . 2 1 . . . . . . . . Max Gunslinging Chain 1 | . . . . . . . 1 . . . . . 1 1 . . 1 . . . . 1 1 . . . . . . . . Shots Hit Robots 876 | . 67 14 . . 14 31 49 57 24 38 4 19 32 56 . 5 23 139 . 33 47 56 19 21 3 18 70 14 21 . 2 Core Hits 507 | . 31 10 . . 5 26 23 37 17 37 . 17 15 16 . 1 29 69 . 5 14 57 7 6 . 21 37 4 23 . . Critical Kills 31 | . . . . . . . . . . . . . . . . . 6 14 . . 1 6 2 1 . . 1 . . . . Critical Parts Destroyed 42 | . . . . . . . . . 1 . . . . . . 2 12 11 . . 1 2 3 3 . 2 5 . . . . Critical Strikes 90 | . 1 . . . . . . . 1 . . . 1 3 . 2 18 27 . 1 2 11 5 4 . 2 12 . . . . Burn 5 | . 1 . . . . . . . . . . . 1 3 . . . . . . . . . . . . . . . . . Meltdown 1 | . . . . . . . . . . . . . . . . . . . . . 1 . . . . . . . . . . Destroy 75 | . . . . . . . . . 1 . . . . . . 2 18 27 . . 1 8 5 4 . 2 7 . . . . Blast 4 | . . . . . . . . . . . . . . . . . . . . 1 . 3 . . . . . . . . . Impale 5 | . . . . . . . . . . . . . . . . . . . . . . . . . . . 5 . . . . Melee Attacks 62 | . . . . . . 5 9 2 . 3 6 . 8 1 . . . . . . . . . . . . 25 1 2 . . Impact . | . . . . . . . . . . . . . . . . . . . . . . . . . . . . . . . . Slashing . | . . . . . . . . . . . . . . . . . . . . . . . . . . . . . . . . Piercing 28 | . . . . . . . . . . . . . . . . . . . . . . . . . . . 25 1 2 . . Sneak Attacks 14 | . . . . . . 4 1 . . . 2 . 4 . . . . . . . . . . . . . 2 1 . . . Combat Hostiles 1 | . . . . . . . 1 . . . . . . . . . . . . . . . . . . . . . . . . Follow-up Attacks . | . . . . . . . . . . . . . . . . . . . . . . . . . . . . . . . . Damage Inflicted 30754 | . 964 241 . . 241 1338 1270 1887 502 1779 66 1265 449 1045 . 19 739 3296 . 1187 2021 4048 609 616 . 1567 3096 820 1604 . 85 Guns 11000 | . 880 221 . . 241 378 778 964 502 650 . . 425 1045 . 19 217 1288 . . . 634 609 616 . 267 1177 29 60 . . Cannons 5182 | . . . . . . . . . . . . 417 . . . . . 114 . 1185 1373 797 . . . . 147 422 642 . 85 Explosions 13312 | . 82 . . . . 960 492 923 . 1111 66 830 . . . . 517 1888 . . 643 2556 . . . 1300 788 298 858 . . Melee 1089 | . . . . . . . . . . . . . . . . . . . . . . . . . . . 984 71 34 . . Ramming 171 | . 2 20 . . . . . . . 18 . 18 24 . . . 5 6 . 2 5 61 . . . . . . 10 . . Kinetic 9502 | . . . . . 241 378 778 964 502 650 . . . 116 . 19 217 1326 . 546 251 1431 609 616 . 267 591 . . . . Thermal 6605 | . 810 198 . . . . . . . . . 417 425 929 . . . 76 . 639 1122 76 . . . . 675 451 702 . 85 Explosive 12805 | . . . . . . 960 492 923 . 1111 66 830 . . . . 465 1888 . . 643 2183 . . . 1300 788 298 858 . . Electromagnetic 582 | . 152 23 . . . . . . . . . . . . . . 52 . . . . 297 . . . . 58 . . . . Impact . | . . . . . . . . . . . . . . . . . . . . . . . . . . . . . . . . Slashing . | . . . . . . . . . . . . . . . . . . . . . . . . . . . . . . . . Piercing 1089 | . . . . . . . . . . . . . . . . . . . . . . . . . . . 984 71 34 . . Highest Corruption 44 | . . . . . 3 3 3 3 1 2 2 7 44 44 44 44 . . . . 3 14 14 14 14 14 5 . . 1 1 Average Corruption 10 | . . . . . 3 3 3 3 1 1 2 4 33 44 44 44 . . . . 2 10 14 14 14 14 4 . . 1 1 Corruption Purged . | . . . . . . . . . . . . . . . . . . . . . . . . . . . . . . . . Corruption Blocked . | . . . . . . . . . . . . . . . . . . . . . . . . . . . . . . . . Effects 206 | . . . . . . 7 6 22 2 7 5 6 18 27 3 9 . . . . 11 18 18 10 7 27 3 . . . . Message Errors 47 | . . . . . . . . 6 . 2 1 . 6 2 2 2 . . . . 6 1 4 2 2 9 2 . . . . Matter Fused 52 | . . . . . . 1 2 5 2 4 2 4 4 7 . 3 . . . . 3 4 2 2 1 6 . . . . . Heat Flow Errors 24 | . . . . . . 2 1 3 . . . 2 3 2 1 1 . . . . 1 1 3 1 1 2 . . . . . Energy Discharges 16 | . . . . . . . . 1 . . 1 . . 2 . . . . . . 1 4 1 1 . 5 . . . . . Parts Rejected 3 | . . . . . . . . . . . . . 1 . . . . . . . . 2 . . . . . . . . . Data Loss (minor) 24 | . . . . . . 2 2 3 . . 1 . . 5 . 2 . . . . . . 4 1 1 3 . . . . . Data Loss (major) 9 | . . . . . . . 1 1 . . . . 2 . . . . . . . . 1 . 1 2 1 . . . . . Misfires 11 | . . . . . . . . 1 . . . . . 3 . . . . . . . 3 1 2 . . 1 . . . . Alerts 7 | . . . . . . 2 . . . 1 . . . 1 . 1 . . . . . . 2 . . . . . . . . Weapon Failures 13 | . . . . . . . . 2 . . . . 2 5 . . . . . . . 2 1 . . 1 . . . . . Overload Shots . | . . . . . . . . . . . . . . . . . . . . . . . . . . . . . . . . Overflow Damage 638 | . 18 . . . . . . 16 . 10 31 58 . . . . . 124 . 33 34 47 . . . 73 186 . 8 . . Projectiles 89 | . . . . . . . . . . . . 23 . . . . . . . 33 12 21 . . . . . . . . . Explosions 363 | . 18 . . . . . . 16 . 10 31 35 . . . . . 124 . . 22 26 . . . 73 . . 8 . . Melee 186 | . . . . . . . . . . . . . . . . . . . . . . . . . . . 186 . . . . Knockbacks 16 | . . 1 . . . . . . . . . . . . . . . 1 . 5 3 6 . . . . . . . . . Impact 1 | . . 1 . . . . . . . . . . . . . . . . . . . . . . . . . . . . . Kinetic 15 | . . . . . . . . . . . . . . . . . . 1 . 5 3 6 . . . . . . . . . Secondary . | . . . . . . . . . . . . . . . . . . . . . . . . . . . . . . . . Self-Inflicted Damage 734 | . 31 8 . . . 40 13 85 . 73 7 159 10 . . . 2 136 . . . 41 . . . . 54 . 75 . . Shots 22 | . 1 1 . . . 2 1 3 . 2 1 4 . . . . . 2 . . . 2 . . . . 2 . 1 . . Rammed 57 | . 1 15 . . . . . . . 10 . 6 6 . . . 1 3 . 1 2 11 . . . . . . 1 . . Targets Rammed 57 | . 1 15 . . . . . . . 10 . 6 6 . . . 1 3 . 1 2 11 . . . . . . 1 . . Kicked . | . . . . . . . . . . . . . . . . . . . . . . . . . . . . . . . . Crushed . | . . . . . . . . . . . . . . . . . . . . . . . . . . . . . . . . Highest Temperature 635 | . 370 17 . . 5 242 209 241 6 5 . 141 296 577 191 202 15 60 . 456 339 386 209 91 213 261 136 495 635 . 75 Average Temperature 105 | . 105 8 . . 3 81 31 54 3 3 . 29 87 140 131 117 5 17 . 145 102 178 72 21 109 124 40 201 290 . 49 Received Heat Transfer 4664 | . 471 213 . . 18 108 270 324 36 93 12 42 495 90 . 9 72 320 . 36 396 637 63 18 . 223 271 81 240 63 63 Effects 18 | . . . . . . . . . . . . . . 9 . . . . . 3 . . . . . . . 1 5 . . Shutdowns 4 | . . . . . . . . . . . . . . 1 . . . . . . . . . . . . . . 3 . . Energy Bleed 3 | . . . . . . . . . . . . . . 2 . . . . . . . . . . . . . 1 . . . Interference 4 | . . . . . . . . . . . . . . 2 . . . . . 2 . . . . . . . . . . . Matter Decay 2 | . . . . . . . . . . . . . . 2 . . . . . . . . . . . . . . . . . Short Circuit 1 | . . . . . . . . . . . . . . . . . . . . . . . . . . . . . 1 . . Damage (minor) 2 | . . . . . . . . . . . . . . 1 . . . . . 1 . . . . . . . . . . . Damage (core) 2 | . . . . . . . . . . . . . . 1 . . . . . . . . . . . . . . 1 . . Siege Activations 5 | . . . . . . . . . . . . . . . . . . 3 . 1 1 . . . . . . . . . . Total Turns 85 | . . . . . . . . . . . . . . . . . . 55 . 25 5 . . . . . . . . . . Longest Duration 30 | . . . . . . . . . . . . . . . . . . 30 . 25 5 . . . . . . . . . . Robots Corrupted . | . . . . . . . . . . . . . . . . . . . . . . . . . . . . . . . . Combat Hostiles . | . . . . . . . . . . . . . . . . . . . . . . . . . . . . . . . . Parts Fried 1 | . . . . . . . . . . . . . 1 . . . . . . . . . . . . . . . . . . Impact Corruptions . | . . . . . . . . . . . . . . . . . . . . . . . . . . . . . . . . Robots Melted 2 | . . . . . . . . . . . . . . . . . . . . . 1 . . . . . 1 . . . . Combat Hostiles 2 | . . . . . . . . . . . . . . . . . . . . . 1 . . . . . 1 . . . . Parts Melted 13 | . 3 1 . . . . . . . . . 2 3 1 . . . . . . . . . . . . 2 . 1 . . Heat Transferred 9234 | . 2114 481 . . . . . . . . . 481 1110 1150 . . . 74 . 666 1147 50 . . . . 814 444 629 . 74 Parts Sabotaged . | . . . . . . . . . . . . . . . . . . . . . . . . . . . . . . . . Parts Stolen . | . . . . . . . . . . . . . . . . . . . . . . . . . . . . . . . . Parts Stripped . | . . . . . . . . . . . . . . . . . . . . . . . . . . . . . . . . Power Chain Reactions 5 | . 2 1 . . . . . . . . . . 2 . . . . . . . . . . . . . . . . . . Alert | -11 -10 -10 -10 -9 -8 -8 -8 -8 -7 -7 -7 -7 -6 -6 -6 -6 -5 -5 -5 -5 -5 -4 -4 -4 -4 -3 -3 -2 -2 -1 -1 ------- Run | Yrd Mat Min Exi Min Mat Gar Mat Gar Fac Gar Fac Gar Fac Gar Fac DSF Fac Gar Fac Gar Fac Fac Upp Upp Zhi Pro Res Res Gar Acc Gar Peak Influence 1297 | . 194 233 . . 67 746 632 1113 846 1215 737 795 471 407 200 140 470 1297 680 758 431 448 . . . . 249 221 350 192 183 Initial 680 | . . 49 . . . 43 363 329 583 592 627 375 396 137 200 140 71 329 680 476 390 52 . . . . 48 133 153 180 145 Average 449 | . 41 160 . . 33 457 495 803 674 983 681 655 353 302 200 126 282 639 680 618 212 153 . . . . 120 157 244 184 149 Maximum Alert Level 4 | . . 1 . . . 3 2 4 3 4 3 3 2 2 1 . 2 4 2 3 2 2 . . . . 1 1 1 . . Low Security (%) 30 | . 100 51 . 100 100 13 . . . . . . 19 5 . 100 32 . . . 57 78 . . . . 85 69 32 100 100 Level 1 19 | . . 48 . . . 31 11 1 . . . 4 52 91 100 . 40 19 . . 29 17 . . . . 14 30 67 . . Level 2 27 | . . . . . . 37 88 32 69 12 59 37 28 2 . . 27 44 100 72 12 3 . . . . . . . . . Level 3 17 | . . . . . . 17 . 55 30 42 40 57 . . . . . 28 . 27 . . . . . . . . . . . Level 4 5 | . . . . . . . . 10 . 44 . . . . . . . 7 . . . . . . . . . . . . . Level 5 . | . . . . . . . . . . . . . . . . . . . . . . . . . . . . . . . . High Security . | . . . . . . . . . . . . . . . . . . . . . . . . . . . . . . . . Max Security . | . . . . . . . . . . . . . . . . . . . . . . . . . . . . . . . . Squads Dispatched 39 | . 4 . . . . . 4 . 3 . 2 . 5 . 2 1 2 . . . 3 7 . . . . 5 . . 1 . Investigation 15 | . 2 . . . . . 1 . 3 . 2 . 2 . 2 . . . . . 1 . . . . . 1 . . 1 . Extermination 3 | . . . . . . . . . . . . . . . . . . . . . . 2 . . . . 1 . . . . Reinforcement 17 | . 2 . . . . . 3 . . . . . 1 . . 1 1 . . . 2 4 . . . . 3 . . . . Assault . | . . . . . . . . . . . . . . . . . . . . . . . . . . . . . . . . Garrison 4 | . . . . . . . . . . . . . 2 . . . 1 . . . . 1 . . . . . . . . . Intercept . | . . . . . . . . . . . . . . . . . . . . . . . . . . . . . . . . Searches Triggered . | . . . . . . . . . . . . . . . . . . . . . . . . . . . . . . . . Construction Impeded 5 | . . . . . . . 1 . . . . . . . . . 1 . . . . 3 . . . . . . . . . Haulers Reinforced 2 | . . . . . . . . . . . . . . . . . . . . . . 1 . . . . 1 . . . . Active Scanning Responses . | . . . . . . . . . . . . . . . . . . . . . . . . . . . . . . . . Cargo Convoy Interrupts . | . . . . . . . . . . . . . . . . . . . . . . . . . . . . . . . . Alert ID Control Effect 2 | . . . . . . . . . . . 1 . 1 . . . . . . . . . . . . . . . . . . Stealth | -11 -10 -10 -10 -9 -8 -8 -8 -8 -7 -7 -7 -7 -6 -6 -6 -6 -5 -5 -5 -5 -5 -4 -4 -4 -4 -3 -3 -2 -2 -1 -1 --------- Run | Yrd Mat Min Exi Min Mat Gar Mat Gar Fac Gar Fac Gar Fac Gar Fac DSF Fac Gar Fac Gar Fac Fac Upp Upp Zhi Pro Res Res Gar Acc Gar Distress Signals 11 | . 2 . . . 2 . 3 . . . . . . . . . 2 . . . 1 1 . . . . . . . . . Communications Jammed 1 | . . . . . . . . . 1 . . . . . . . . . . . . . . . . . . . . . . Distress Signals . | . . . . . . . . . . . . . . . . . . . . . . . . . . . . . . . . Times Spotted 312 | . 20 7 . . 4 19 20 14 10 14 5 15 16 13 . 6 17 27 . 7 10 26 3 1 . 8 18 2 19 7 4 Peak Tracking Total 8 | . 4 2 . . 2 5 5 3 2 4 1 3 4 6 . 4 8 7 . 2 4 5 3 1 . 5 4 2 7 7 4 Tactical Retreats 16 | . 1 1 . . . 2 . . . . . 1 1 1 . . 1 . . 1 . 3 . . . . 3 . 1 . . Traps | -11 -10 -10 -10 -9 -8 -8 -8 -8 -7 -7 -7 -7 -6 -6 -6 -6 -5 -5 -5 -5 -5 -4 -4 -4 -4 -3 -3 -2 -2 -1 -1 ------- Run | Yrd Mat Min Exi Min Mat Gar Mat Gar Fac Gar Fac Gar Fac Gar Fac DSF Fac Gar Fac Gar Fac Fac Upp Upp Zhi Pro Res Res Gar Acc Gar Traps Triggered 24 | . 2 . . . . 4 . . . 5 . . . 1 1 1 1 . 1 2 3 . . . . . 1 . 2 . . Indirectly 1 | . . . . . . . . . . . . . . . . . 1 . . . . . . . . . . . . . . Trap Hack Attempts 58 | . . . . . . . 19 . 25 . 14 . . . . . . . . . . . . . . . . . . . . Triggered . | . . . . . . . . . . . . . . . . . . . . . . . . . . . . . . . . Disarmed 4 | . . . . . . . . . 4 . . . . . . . . . . . . . . . . . . . . . . Reprogrammed 8 | . . . . . . . 4 . . . 4 . . . . . . . . . . . . . . . . . . . . Reused 1 | . . . . . . . 1 . . . . . . . . . . . . . . . . . . . . . . . . Traps Extracted . | . . . . . . . . . . . . . . . . . . . . . . . . . . . . . . . . Installed . | . . . . . . . . . . . . . . . . . . . . . . . . . . . . . . . . Triggered 2 | . . . . . . . 1 . . . . . . . . . . . . . . . 1 . . . . . . . . Machines | -11 -10 -10 -10 -9 -8 -8 -8 -8 -7 -7 -7 -7 -6 -6 -6 -6 -5 -5 -5 -5 -5 -4 -4 -4 -4 -3 -3 -2 -2 -1 -1 ---------- Run | Yrd Mat Min Exi Min Mat Gar Mat Gar Fac Gar Fac Gar Fac Gar Fac DSF Fac Gar Fac Gar Fac Fac Upp Upp Zhi Pro Res Res Gar Acc Gar Machines Disabled 52 | . 2 1 . . . 3 1 8 1 5 . 2 . 2 . . 10 6 . 2 . 5 . . . . 2 . . 1 1 Max in Single Turn 4 | . 1 1 . . . 1 1 2 1 2 . 1 . 1 . . 4 1 . 1 . 2 . . . . 2 . . 1 1 Garrison Relay 17 | . . . . . . 2 . 3 . 3 . 1 . 2 . . . 4 . 1 . . . . . . . . . . 1 Phase Generator 2 | . . . . . . . . 1 . 1 . . . . . . . . . . . . . . . . . . . . . Machines Repaired . | . . . . . . . . . . . . . . . . . . . . . . . . . . . . . . . . Machines Dismantled . | . . . . . . . . . . . . . . . . . . . . . . . . . . . . . . . . Machines Sabotaged . | . . . . . . . . . . . . . . . . . . . . . . . . . . . . . . . . Overloaded Fab Kills 4 | . . . . . . . . . . . . . 4 . . . . . . . . . . . . . . . . . . Hacking | -11 -10 -10 -10 -9 -8 -8 -8 -8 -7 -7 -7 -7 -6 -6 -6 -6 -5 -5 -5 -5 -5 -4 -4 -4 -4 -3 -3 -2 -2 -1 -1 --------- Run | Yrd Mat Min Exi Min Mat Gar Mat Gar Fac Gar Fac Gar Fac Gar Fac DSF Fac Gar Fac Gar Fac Fac Upp Upp Zhi Pro Res Res Gar Acc Gar Machines Accessed 57 | . 7 . 2 . 4 2 3 3 4 . 5 1 3 . 2 . 2 1 1 . 5 2 . . 4 1 2 1 . 2 . Terminals 26 | . 5 . . . 2 2 1 3 1 . 2 1 . . 2 . . 1 . . 2 2 . . . 1 1 . . . . Fabricators 2 | . . . . . . . . . . . . . 1 . . . . . . . 1 . . . . . . . . . . Repair Stations 6 | . . . . . 1 . 1 . 2 . . . 1 . . . . . . . 1 . . . . . . . . . . Recycling Units 6 | . 2 . . . . . . . . . 1 . . . . . 1 . . . 1 . . . . . . . . 1 . Scanalyzers 2 | . . . . . . . . . . . 1 . . . . . . . . . . . . . . . 1 . . . . Garrison Access 9 | . . . . . 1 . 1 . 1 . 1 . 1 . . . 1 . 1 . . . . . . . . 1 . 1 . Total Hacks 170 | . 25 . 2 . 11 7 9 7 13 . 19 3 6 . 6 . 8 2 1 . 18 6 . . 17 1 5 1 . 3 . Successful 108 | . 18 . 2 . 6 2 9 5 8 . 8 . 3 . 1 . 7 1 1 . 10 4 . . 17 1 3 1 . 1 . Failed 62 | . 7 . . . 5 5 . 2 5 . 11 3 3 . 5 . 1 1 . . 8 2 . . . . 2 . . 2 . Catastrophic 7 | . 1 . . . 1 2 . . . . . . 1 . . . . . . . . 1 . . . . . . . 1 . Database Lockouts . | . . . . . . . . . . . . . . . . . . . . . . . . . . . . . . . . Manual 63 | . 16 . 1 . 4 2 4 4 3 . 5 1 2 . . . 6 . . . 9 2 . . . 1 3 . . . . Terminals 84 | . 16 . . . 7 7 5 7 1 . 9 3 . . 6 . . 2 . . 11 6 . . . 1 3 . . . . Fabricators 5 | . . . . . . . . . . . . . 3 . . . . . . . 2 . . . . . . . . . . Repair Stations 19 | . . . . . 2 . 3 . 9 . . . 2 . . . . . . . 3 . . . . . . . . . . Recycling Units 22 | . 9 . . . . . . . . . 2 . . . . . 7 . . . 2 . . . . . . . . 2 . Scanalyzers 9 | . . . . . . . . . . . 7 . . . . . . . . . . . . . . . 2 . . . . Garrison Access 12 | . . . . . 2 . 1 . 3 . 1 . 1 . . . 1 . 1 . . . . . . . . 1 . 1 . Terminal Hacks 52 | . 6 . 2 . 3 2 5 4 1 . 1 . . . 1 . . 1 . . 4 3 . . 17 1 1 . . . . Record 8 | . . . 1 . . . . . . . . . . . . . . . . . . . . . 5 1 1 . . . . Part Schematic 4 | . . . . . . . . . . . . . . . . . . . . . . . . . 4 . . . . . . Robot Schematic 1 | . . . . . . . . . . . . . . . . . . . . . 1 . . . . . . . . . . Robot Analysis 6 | . . . . . 1 . . . . . . . . . . . . . . . 1 . . . 4 . . . . . . Prototype ID Bank 6 | . . . . . 1 . 1 . . . . . . . . . . . . . . . . . 4 . . . . . . Open Door 2 | . . . . . . . . 1 . . . . . . . . . 1 . . . . . . . . . . . . . Open DSF 2 | . . . . . . . . . 1 . . . . . 1 . . . . . . . . . . . . . . . . Branch Access Points 1 | . . . . . . . . . . . . . . . . . . . . . 1 . . . . . . . . . . Emergency Access Points 2 | . 1 . . . . . . 1 . . . . . . . . . . . . . . . . . . . . . . . Terminal Index 1 | . 1 . . . . . . . . . . . . . . . . . . . . . . . . . . . . . . Alert Level 2 | . . . . . 1 . 1 . . . . . . . . . . . . . . . . . . . . . . . . Unreport Threat 1 | . . . . . . . 1 . . . . . . . . . . . . . . . . . . . . . . . . Locate Traps 5 | . 1 . . . . . 1 . . . 1 . . . . . . . . . . 2 . . . . . . . . . Dispatch Records 2 | . 1 . . . . . . . . . . . . . . . . . . . . 1 . . . . . . . . . Recall Investigation 1 | . 1 . . . . . . . . . . . . . . . . . . . . . . . . . . . . . . Zone Layout 3 | . 1 . . . . . 1 . . . . . . . . . . . . . 1 . . . . . . . . . . Garrison Registry 1 | . . . . . . . . 1 . . . . . . . . . . . . . . . . . . . . . . . Patrol Navigation 2 | . . . . . . 1 . 1 . . . . . . . . . . . . . . . . . . . . . . . Security Stations 1 | . . . . . . 1 . . . . . . . . . . . . . . . . . . . . . . . . . Derelict Proto ID Bank 1 | . . . 1 . . . . . . . . . . . . . . . . . . . . . . . . . . . . Fabricator Hacks 2 | . . . . . . . . . . . . . 1 . . . . . . . 1 . . . . . . . . . . Network Status 1 | . . . . . . . . . . . . . 1 . . . . . . . . . . . . . . . . . . Load Schematic 1 | . . . . . . . . . . . . . . . . . . . . . 1 . . . . . . . . . . Repair Station Hacks 10 | . . . . . 2 . 2 . 6 . . . . . . . . . . . . . . . . . . . . . . Scan Component 5 | . . . . . . . 1 . 4 . . . . . . . . . . . . . . . . . . . . . . Repair 3 | . . . . . . . 1 . 2 . . . . . . . . . . . . . . . . . . . . . . Refit 2 | . . . . . 2 . . . . . . . . . . . . . . . . . . . . . . . . . . Recycling Unit Hacks 7 | . 4 . . . . . . . . . . . . . . . 1 . . . 2 . . . . . . . . . . Report Inventory 5 | . 3 . . . . . . . . . . . . . . . 1 . . . 1 . . . . . . . . . . Retrieve Components 2 | . 1 . . . . . . . . . . . . . . . . . . . 1 . . . . . . . . . . Scanalyzer 5 | . . . . . . . . . . . 4 . . . . . . . . . . . . . . . 1 . . . . Insert Component 3 | . . . . . . . . . . . 2 . . . . . . . . . . . . . . . 1 . . . . Analyze 2 | . . . . . . . . . . . 2 . . . . . . . . . . . . . . . . . . . . Garrison Access Hacks 9 | . . . . . 1 . 1 . 1 . 1 . 1 . . . 1 . 1 . . . . . . . . 1 . 1 . Unlock Access 9 | . . . . . 1 . 1 . 1 . 1 . 1 . . . 1 . 1 . . . . . . . . 1 . 1 . Unauthorized Hacks 22 | . 8 . . . . . 1 1 . . 2 . 1 . . . 4 . . . 3 1 . . . . 1 . . . . Terminals 11 | . 5 . . . . . . 1 . . 1 . . . . . . . . . 3 1 . . . . . . . . . Assimilate 1 | . . . . . . . . . . . 1 . . . . . . . . . . . . . . . . . . . . Botnet 5 | . 2 . . . . . . . . . . . . . . . . . . . 2 1 . . . . . . . . . Disrupt 1 | . . . . . . . . 1 . . . . . . . . . . . . . . . . . . . . . . . Operators 1 | . . . . . . . . . . . . . . . . . . . . . 1 . . . . . . . . . . Skim 3 | . 3 . . . . . . . . . . . . . . . . . . . . . . . . . . . . . . Fabricators 1 | . . . . . . . . . . . . . 1 . . . . . . . . . . . . . . . . . . Overload 1 | . . . . . . . . . . . . . 1 . . . . . . . . . . . . . . . . . . Repair Stations 1 | . . . . . . . 1 . . . . . . . . . . . . . . . . . . . . . . . . Patch 1 | . . . . . . . 1 . . . . . . . . . . . . . . . . . . . . . . . . Recycling Units 7 | . 3 . . . . . . . . . . . . . . . 4 . . . . . . . . . . . . . . Monitor 2 | . 1 . . . . . . . . . . . . . . . 1 . . . . . . . . . . . . . . Reject 2 | . 1 . . . . . . . . . . . . . . . 1 . . . . . . . . . . . . . . Recyclers 2 | . 1 . . . . . . . . . . . . . . . 1 . . . . . . . . . . . . . . Mask 1 | . . . . . . . . . . . . . . . . . 1 . . . . . . . . . . . . . . Scanalyzers 2 | . . . . . . . . . . . 1 . . . . . . . . . . . . . . . 1 . . . . Extract 2 | . . . . . . . . . . . 1 . . . . . . . . . . . . . . . 1 . . . . Garrison Access . | . . . . . . . . . . . . . . . . . . . . . . . . . . . . . . . . Data Cores Recovered 3 | . . . . . 1 . 2 . . . . . . . . . . . . . . . . . . . . . . . . Used 1 | . . . . . 1 . . . . . . . . . . . . . . . . . . . . . . . . . . Hacking Detections 40 | . 7 . . . 2 2 3 3 3 . 4 1 3 . 2 . . . 1 . 4 2 . . . . 1 . . 2 . Full Trace Events 14 | . . . . . 2 2 . 1 3 . 1 . 1 . 2 . . . . . 1 . . . . . . . . 1 . Feedback Events 3 | . . . . . . 1 . . 1 . . . . . . . . . . . . . . . . . . . . 1 . Corruption 2 | . . . . . . . . . 1 . . . . . . . . . . . . . . . . . . . . 1 . Hackware Fried 1 | . . . . . . 1 . . . . . . . . . . . . . . . . . . . . . . . . . Feedback Blocked . | . . . . . . . . . . . . . . . . . . . . . . . . . . . . . . . . Robot Schematics Acquired 1 | . . . . . . . . . . . . . . . . . . . . . 1 . . . . . . . . . . Robots Built . | . . . . . . . . . . . . . . . . . . . . . . . . . . . . . . . . Authchips . | . . . . . . . . . . . . . . . . . . . . . . . . . . . . . . . . Time . | . . . . . . . . . . . . . . . . . . . . . . . . . . . . . . . . Total Robot Build Rating . | . . . . . . . . . . . . . . . . . . . . . . . . . . . . . . . . Part Schematics Acquired 8 | . . . . . . . . . . . 3 . . . . . . . . . . . . . 4 . 1 . . . . Parts Built . | . . . . . . . . . . . . . . . . . . . . . . . . . . . . . . . . Authchips . | . . . . . . . . . . . . . . . . . . . . . . . . . . . . . . . . Time . | . . . . . . . . . . . . . . . . . . . . . . . . . . . . . . . . Total Part Build Rating . | . . . . . . . . . . . . . . . . . . . . . . . . . . . . . . . . Parts Repaired 3 | . . . . . . . 1 . 2 . . . . . . . . . . . . . . . . . . . . . . Time 117 | . . . . . . . 38 . 79 . . . . . . . . . . . . . . . . . . . . . . Parts Recycled . | . . . . . . . . . . . . . . . . . . . . . . . . . . . . . . . . Recycled Matter . | . . . . . . . . . . . . . . . . . . . . . . . . . . . . . . . . Retrieved Matter . | . . . . . . . . . . . . . . . . . . . . . . . . . . . . . . . . Retrieved Components 12 | . 9 . . . . . . . . . . . . . . . . . . . 3 . . . . . . . . . . Parts Scanalyzed 2 | . . . . . . . . . . . 2 . . . . . . . . . . . . . . . . . . . . Part Schematics Acquired 2 | . . . . . . . . . . . 2 . . . . . . . . . . . . . . . . . . . . Parts Damaged . | . . . . . . . . . . . . . . . . . . . . . . . . . . . . . . . . Bothacking | -11 -10 -10 -10 -9 -8 -8 -8 -8 -7 -7 -7 -7 -6 -6 -6 -6 -5 -5 -5 -5 -5 -4 -4 -4 -4 -3 -3 -2 -2 -1 -1 ------------ Run | Yrd Mat Min Exi Min Mat Gar Mat Gar Fac Gar Fac Gar Fac Gar Fac DSF Fac Gar Fac Gar Fac Fac Upp Upp Zhi Pro Res Res Gar Acc Gar Used RIF Installer 7 | . . . . . . 1 . 2 . 2 . . . 1 . . . . . 1 . . . . . . . . . . . Threat Obfuscator 1 | . . . . . . . . . . . . . . 1 . . . . . . . . . . . . . . . . . Signal Jammer 1 | . . . . . . . . 1 . . . . . . . . . . . . . . . . . . . . . . . Patrol Navigation 1 | . . . . . . . . . . 1 . . . . . . . . . . . . . . . . . . . . . Alert ID Control 1 | . . . . . . . . . . 1 . . . . . . . . . . . . . . . . . . . . . Program Shield 1 | . . . . . . . . 1 . . . . . . . . . . . . . . . . . . . . . . . Autooverride 1 | . . . . . . . . . . . . . . . . . . . . 1 . . . . . . . . . . . Robots Hacked 38 | . . . . . . 1 3 2 . 3 4 3 5 2 . . . 5 . 2 5 . . . 3 . . . . . . Non-combat 7 | . . . . . . . . . . . 2 . 2 . . . . . . . 3 . . . . . . . . . . Combat 31 | . . . . . . 1 3 2 . 3 2 3 3 2 . . . 5 . 2 2 . . . 3 . . . . . . Autooverrided 1 | . . . . . . . . . . . . . . . . . . . . . 1 . . . . . . . . . . Robot Hacks Applied 47 | . . . . . . 1 6 2 . 3 4 4 8 3 . . . 6 . 2 5 . . . 3 . . . . . . parse_system 6 | . . . . . . . . . . . . . 2 . . . . 1 . . . . . . 3 . . . . . . generate_anomaly 1 | . . . . . . . . . . . . . 1 . . . . . . . . . . . . . . . . . . generate_echo 1 | . . . . . . . . . . . 1 . . . . . . . . . . . . . . . . . . . . ignore_repairs 1 | . . . . . . . . . . . 1 . . . . . . . . . . . . . . . . . . . . purge_threat 3 | . . . . . . . . . . . . . 1 . . . . . . . 2 . . . . . . . . . . find_garrison 2 | . . . . . . . 1 . . . 1 . . . . . . . . . . . . . . . . . . . . disrupt_area 1 | . . . . . . . 1 . . . . . . . . . . . . . . . . . . . . . . . . spike_heat 2 | . . . . . . . 2 . . . . . . . . . . . . . . . . . . . . . . . . overload_power 2 | . . . . . . . . . . . . . 1 . . . . . . . 1 . . . . . . . . . . amplify_resonance 9 | . . . . . . . . . . . . 2 1 2 . . . 1 . 1 2 . . . . . . . . . . disable_weapons 1 | . . . . . . . . . . 1 . . . . . . . . . . . . . . . . . . . . . reboot_system 1 | . . . . . . . . . . . . 1 . . . . . . . . . . . . . . . . . . . overwrite_iff 4 | . . . . . . . 1 1 . . . . . 1 . . . 1 . . . . . . . . . . . . . formatsys_low 1 | . . . . . . . . . . . . . 1 . . . . . . . . . . . . . . . . . . formatsys_high 12 | . . . . . . 1 1 1 . 2 1 1 1 . . . . 3 . 1 . . . . . . . . . . . Relay Couplers Released 68 | . . . . . . 7 . 11 . 11 . 9 . 8 . . . 16 . 3 . . . . . . . . . . 3 Machine Destruction 64 | . . . . . . 7 . 11 . 11 . 5 . 8 . . . 16 . 3 . . . . . . . . . . 3 Programmers 4 | . . . . . . . . . . . . 4 . . . . . . . . . . . . . . . . . . . Attached 39 | . . . . . . 4 1 1 2 4 2 2 4 5 1 1 . 9 . 2 . . . . . . . . . . 1 Fabnet Peak Effective % . | . . . . . . . . . . . . . . . . . . . . . . . . . . . . . . . . Robots Rewired 9 | . . . . . . 3 . 2 . . . . . . . . 1 3 . . . . . . . . . . . . . Allies Hacked 1 | . . . . . . . . . 1 . . . . . . . . . . . . . . . . . . . . . . Hacks Repelled . | . . . . . . . . . . . . . . . . . . . . . . . . . . . . . . . . Allies | -11 -10 -10 -10 -9 -8 -8 -8 -8 -7 -7 -7 -7 -6 -6 -6 -6 -5 -5 -5 -5 -5 -4 -4 -4 -4 -3 -3 -2 -2 -1 -1 -------- Run | Yrd Mat Min Exi Min Mat Gar Mat Gar Fac Gar Fac Gar Fac Gar Fac DSF Fac Gar Fac Gar Fac Fac Upp Upp Zhi Pro Res Res Gar Acc Gar Total Allies 32 | . . . . . . 4 2 4 . 2 2 1 2 2 . 3 1 7 . 1 1 . . . . . . . . . . Largest Group 5 | . . . . . . 4 5 3 3 3 2 2 1 1 . 2 2 3 2 3 . . . . . . . . . . . Highest-Rated Group 316 | . . . . . . 45 72 69 69 45 42 42 26 85 . 112 132 296 292 316 . . . . . . . . . . . Highest-Rated Ally 148 | . . . . . . 15 21 31 31 16 32 32 26 85 . 90 90 148 148 148 . . . . . . . . . . . Total Orders 6 | . . . . . . . . . . . . . . . . . . 4 . 2 . . . . . . . . . . . STAY 3 | . . . . . . . . . . . . . . . . . . 2 . 1 . . . . . . . . . . . FOLLOW 3 | . . . . . . . . . . . . . . . . . . 2 . 1 . . . . . . . . . . . Ally Attacks 174 | . . . . . . 1 30 7 11 8 7 7 2 10 . 15 14 27 . 35 . . . . . . . . . . . Total Damage 4201 | . . . . . . 29 800 129 147 125 173 116 51 220 . 292 707 762 . 650 . . . . . . . . . . . Kills 47 | . . . . . . 1 11 3 3 1 2 1 1 2 . 3 9 5 . 5 . . . . . . . . . . . Allies Corrupted 3 | . . . . . . . . . . . . . 1 . . . . 2 . . . . . . . . . . . . . Allies Melted 1 | . . . . . . . . . . . . . . 1 . . . . . . . . . . . . . . . . . Field Lobotomies 4 | . . . . . . . . . . . . . . 1 . 3 . . . . . . . . . . . . . . . Intel | -11 -10 -10 -10 -9 -8 -8 -8 -8 -7 -7 -7 -7 -6 -6 -6 -6 -5 -5 -5 -5 -5 -4 -4 -4 -4 -3 -3 -2 -2 -1 -1 ------- Run | Yrd Mat Min Exi Min Mat Gar Mat Gar Fac Gar Fac Gar Fac Gar Fac DSF Fac Gar Fac Gar Fac Fac Upp Upp Zhi Pro Res Res Gar Acc Gar Robot Analysis Total 6 | . . . . . 1 . . . . . . . . . . . . . . . 1 . . . 4 . . . . . . Derelict Logs Recovered 3 | . . 2 . . . . . . . . . . . . . . . . . . . . . 1 . . . . . . . Drone Launches . | . . . . . . . . . . . . . . . . . . . . . . . . . . . . . . . . Drone Recoveries . | . . . . . . . . . . . . . . . . . . . . . . . . . . . . . . . . Exploration | -11 -10 -10 -10 -9 -8 -8 -8 -8 -7 -7 -7 -7 -6 -6 -6 -6 -5 -5 -5 -5 -5 -4 -4 -4 -4 -3 -3 -2 -2 -1 -1 ------------- Run | Yrd Mat Min Exi Min Mat Gar Mat Gar Fac Gar Fac Gar Fac Gar Fac DSF Fac Gar Fac Gar Fac Fac Upp Upp Zhi Pro Res Res Gar Acc Gar Turns Passed 13763 | . 1083 472 72 34 118 398 450 1072 344 836 422 392 494 444 63 151 205 1892 198 474 709 644 366 323 201 572 680 179 385 34 56 Spaces Moved 9748 | 1 508 502 219 81 220 428 550 597 304 548 308 190 284 365 179 128 348 920 111 199 433 391 290 247 151 435 332 100 278 41 60 Core 350 | . . . . . . . . . . . . 33 101 . . . . 61 . . . . . . . . . . 54 41 60 Treads 1578 | . 329 160 . . . . . 81 . . . . . . . . . 614 111 199 82 2 . . . . . . . . . Legs 1539 | 1 141 . . . . . . 254 59 . . . 105 . . . . 141 . . . . . . 61 435 332 6 4 . . Wheels 2304 | . 38 . . . . . . . . 232 308 157 . . . . . . . . 351 389 290 247 90 . . 94 108 . . Hover 1059 | . . . . . . . 236 262 245 316 . . . . . . . . . . . . . . . . . . . . . Flight 2918 | . . 342 219 81 220 428 314 . . . . . 78 365 179 128 348 104 . . . . . . . . . . 112 . . Fastest Speed 16 | 120 90 32 32 32 26 29 29 45 48 48 100 100 26 26 27 27 23 25 160 163 115 93 112 112 112 116 116 110 16 50 50 Average Speed 98 | 120 164 72 32 32 28 34 44 137 69 103 114 141 100 31 28 29 27 156 162 163 129 110 112 112 115 117 122 126 80 50 55 Slowest Speed 435 | 120 260 160 32 32 29 105 180 260 120 180 115 350 435 112 29 97 82 400 163 163 250 250 112 112 190 120 190 190 260 50 400 Overloaded Moves 48 | . . . . . . . . . . . . . . . . . 17 . . . . . . . . . . . 31 . . Propulsion Burnouts . | . . . . . . . . . . . . . . . . . . . . . . . . . . . . . . . . Robots Hopped 21 | . . 5 . 3 1 . . . . . . . . 6 . . 6 . . . . . . . . . . . . . . Cave-ins Triggered . | . . . . . . . . . . . . . . . . . . . . . . . . . . . . . . . . Teleports 1 | . . . . . . . . . . . . . . . . . . . . . . . . . . . . 1 . . . Exploration Rate (%) 34 | 2 68 96 61 38 33 33 36 70 6 65 9 39 3 37 3 70 14 58 5 31 13 12 45 49 60 67 9 4 43 1 12 Regions Visited 31 Branch Regions 7 Pre-discovered Areas 4 | . . . 1 . . . . . . . . . . . . . . . . . . . . . 3 . . . . . . Known Exits Taken 11 | . . . . . 1 . 1 . 1 . 1 . 1 . 1 . 1 . 1 . . . . . . 1 . 1 . 1 . Unknown Exits Taken 11 | 1 1 1 1 1 . . . . . . . . . . . . . . . . 1 1 1 1 1 . 1 . . . . Scrap Searched 11 | . . 2 . 2 . . . . . . . . . . . . . . . . . . . 2 . 5 . . . . . Spaces Dug 13 | . . . . . . . . . . . . . . . . . 2 3 . 3 . . . . . . . . 5 . . Terrain Destroyed 940 | . 4 4 . . 1 54 51 123 . 115 26 58 . . . . 24 83 . 19 21 109 24 34 . 91 33 28 38 . . Melee . | . . . . . . . . . . . . . . . . . . . . . . . . . . . . . . . . Projectile 144 | . . . . . 1 . 2 . . . . . . . . . 2 8 . 19 10 28 24 34 . 9 3 2 2 . . AOE 788 | . 4 4 . . . 54 49 123 . 115 26 58 . . . . 22 67 . . 11 81 . . . 82 30 26 36 . . Terrain Rammed 1 | . . . . . . . . . . . . . . . . . . . . . . . . . . . . . 1 . . Walls Destroyed . | . . . . . . . . . . . . . . . . . . . . . . . . . . . . . . . . Machines Disabled . | . . . . . . . . . . . . . . . . . . . . . . . . . . . . . . . . Actions | -11 -10 -10 -10 -9 -8 -8 -8 -8 -7 -7 -7 -7 -6 -6 -6 -6 -5 -5 -5 -5 -5 -4 -4 -4 -4 -3 -3 -2 -2 -1 -1 --------- Run | Yrd Mat Min Exi Min Mat Gar Mat Gar Fac Gar Fac Gar Fac Gar Fac DSF Fac Gar Fac Gar Fac Fac Upp Upp Zhi Pro Res Res Gar Acc Gar Total 12506 | . 665 573 220 85 253 621 689 745 398 732 370 273 441 602 191 226 413 1181 129 292 524 501 302 267 174 465 488 134 420 52 80 Wait 904 | . 29 16 . 6 . 73 27 40 23 34 30 18 73 154 . 43 12 75 15 57 17 18 . 2 . 4 62 9 54 6 7 Move 9684 | . 507 491 218 75 217 427 549 596 303 547 308 189 284 354 178 127 337 919 110 198 432 390 289 246 150 434 331 100 277 41 60 Hop 16 | . . 5 . 2 1 . . . . . . . . 3 . . 5 . . . . . . . . . . . . . . Pick Up 119 | . 20 5 1 . 3 6 9 14 9 7 2 5 2 2 1 4 3 3 . . 7 4 . 1 1 . 2 3 4 1 . Fast Attach 202 | . 6 2 . . 5 7 12 9 2 6 4 3 19 7 4 11 7 22 1 1 12 21 . 4 8 2 11 7 8 . 1 Attach 73 | . 5 3 . 1 2 2 1 1 5 2 . 2 7 2 2 2 4 3 . 1 6 3 . . 1 2 2 3 5 1 5 Detach 69 | . 3 . . 1 2 2 2 . . 3 . 1 4 3 5 5 4 9 . . 7 1 . . 1 2 3 2 4 1 4 Swap 162 | . 9 1 . . 3 4 17 12 3 21 2 6 3 5 . 3 3 25 1 3 4 2 . 1 4 5 9 1 15 . . Drop 169 | . 14 14 1 . 6 10 9 10 8 5 . 3 6 5 1 6 6 16 2 . 5 3 . 2 6 2 3 . 26 . . Fire 756 | . 71 21 . . 14 38 34 57 20 40 3 40 27 49 . 7 23 97 . 30 32 48 13 11 3 14 40 8 11 2 3 Melee 62 | . . . . . . 5 9 2 . 3 6 . 8 1 . . . . . . . . . . . . 25 1 2 . . Ram 27 | . . . . . . . . . . 10 . 6 6 . . . 1 . . . . 2 . . . . . . 2 . . Kick . | . . . . . . . . . . . . . . . . . . . . . . . . . . . . . . . . Crush 31 | . 1 15 . . . . . . . . . . . . . . . 3 . 1 2 9 . . . . . . . . . Escape Stasis 145 | . . . . . . 46 . . . 52 . . . 17 . 18 . . . . . . . . . . . . 12 . . Rewire 29 | . . . . . . 1 1 4 . 2 1 . 2 . . . 8 9 . 1 . . . . . . . . . . . Trap 58 | . . . . . . . 19 . 25 . 14 . . . . . . . . . . . . . . . . . . . . Miscellaneous . | . . . . . . . . . . . . . . . . . . . . . . . . . . . . . . . . Route ------- -11/Scrapyard -10/Materials (discovered 2 exits: [*Mat] / [*Min]) -10/Mines (discovered 3 exits: [*Mat x2] / *Exi) -10/Exiles -9/Mines -8/Materials (discovered 3 exits: *Fac / Sto / Gar) -8/Garrison -8/Materials (discovered 2 exits: *Sto / Gar) -8/Garrison (discovered 3 exits: *Fac x3) -7/Factory -7/Garrison (discovered 2 exits: *Fac x2) -7/Factory (discovered 2 exits: [*Low] / Gar) -7/Garrison -6/Factory -6/Garrison -6/Factory -6/DSF -5/Factory -5/Garrison -5/Factory -5/Garrison -5/Factory (discovered 5 exits: *Fac / Upp x2 / Ext x2) -4/Factory -4/Upper Caves -4/Upper Caves -4/Zhirov -3/Proximity Caves -3/Research -2/Research -2/Garrison -1/Access -1/Garrison History --------- Turn | Location | Event 1 | -11/Scrapyard | Discovered new exit (range 0) 1 | -11/Scrapyard | Entered Materials 306 | -10/Materials | Build established: Mutant 474 | -10/Materials | Lost 3 parts (1n2w) 870 | -10/Materials | Discovered new exit (range 16) 989 | -10/Materials | Discovered new exit (range 15) 1084 | -10/Materials | Entered Mines 1104 | -10/Mines | Learned 2 Materials zone layouts 1219 | -10/Mines | Core integrity fell below 50% 1362 | -10/Mines | Discovered new exit (range 7) 1423 | -10/Mines | Core integrity fell below 20% 1440 | -10/Mines | Found a damaged Exp. Sensor Array with a note attached 1441 | -10/Mines | Found Prototype Device 1441 | -10/Mines | Identified Exp. Sensor Array 1449 | -10/Mines | Lost 4 parts (1p2n1w) 1461 | -10/Mines | A weapon hastily lodged in a ceiling crevice suddenly fell to the ground 1478 | -10/Mines | Received a Rocket Launcher from a helpful Derelict 1502 | -10/Mines | Discovered new exit (range 12) 1554 | -10/Mines | Deemed a non-threat by the Exiles lab entrance 1554 | -10/Mines | Discovered new exit (range 5) 1556 | -10/Mines | Entered Exiles 1565 | -10/Exiles | Met 8R-AWN 1570 | -10/Exiles | Met EX-HEX 1580 | -10/Exiles | Met EX-BIN 1584 | -10/Exiles | Aligned with FarCom system 1585 | -10/Exiles | Given EX-Vault access code 1592 | -10/Exiles | Opened EX-Vault 1594 | -10/Exiles | Found Field Lobotomy Kit 1603 | -10/Exiles | Warned to stay clear of 0b10 Research branches 1613 | -10/Exiles | Met EX-DEC 1615 | -10/Exiles | Learned location of Zion (-7) 1625 | -10/Exiles | Discovered new exit (range 10) 1628 | -10/Exiles | Left Exiles lab with Field Lobotomy Kit 1628 | -10/Exiles | Entered Mines 1657 | -9/Mines | Discovered new exit (range 5) 1662 | -9/Mines | Entered Materials 1662 | -8/Materials | Evolved 4 slots: Propulsion x2, Utility x2 1663 | -8/Materials | Identified exit to Storage 1664 | -8/Materials | Identified exit to Factory 1773 | -8/Materials | Identified exit to Garrison 1780 | -8/Materials | Entered Garrison 1795 | -8/Garrison | Garrison Relay disabled 1801 | -8/Garrison | Installed Relay Interface Framework 1820 | -8/Garrison | Triggered checkpoint 1844 | -8/Garrison | Triggered checkpoint 1844 | -8/Garrison | Hacking Suite fried by hacking feedback 1980 | -8/Garrison | Triggered checkpoint 2016 | -8/Garrison | Discovered new exit (range 10) 2022 | -8/Garrison | Triggered checkpoint 2068 | -8/Garrison | Garrison Relay disabled 2072 | -8/Garrison | Triggered checkpoint 2109 | -8/Garrison | Learned Materials security intel 2178 | -8/Garrison | Entered Materials 2178 | -8/Materials | Accompanied by 4 allies 2244 | -8/Materials | Repaired Lgt. Nuclear Core? 2463 | -8/Materials | Discovered exit to Storage (range 16) 2521 | -8/Materials | Lost 4 parts (1p1n1u1w) 2627 | -8/Materials | Identified exit to Garrison 2628 | -8/Materials | Entered Garrison 2648 | -8/Garrison | Triggered checkpoint 2661 | -8/Garrison | Garrison Relay disabled 2686 | -8/Garrison | Triggered checkpoint 2734 | -8/Garrison | Phase Generator disabled 2744 | -8/Garrison | Discovered exit to Factory (range 30) 2744 | -8/Garrison | Discovered exit to Factory (range 80) 2744 | -8/Garrison | Discovered exit to Factory (range 62) 2983 | -8/Garrison | Build established: Hacker-Mutant 2986 | -8/Garrison | Expanded RIF knowledge: Program Shield 2993 | -8/Garrison | Core integrity fell below 50% 3046 | -8/Garrison | Triggered checkpoint 3070 | -8/Garrison | Garrison Relay disabled 3180 | -8/Garrison | Triggered checkpoint 3348 | -8/Garrison | Garrison Relay disabled 3378 | -8/Garrison | Build established: Bothacker-Mutant 3532 | -8/Garrison | Expanded RIF knowledge: Signal Jamming 3552 | -8/Garrison | Triggered checkpoint 3700 | -8/Garrison | Entered Factory 3700 | -7/Factory | Accompanied by 3 allies 3700 | -7/Factory | Evolved 2 slots: Utility x2 3705 | -7/Factory | Identified exit to DSF 3762 | -7/Factory | Repaired Prc. Assault Rifle 3807 | -7/Factory | Repaired Broken Prc. Assault Rifle 3929 | -7/Factory | Identified exit to Garrison 4044 | -7/Factory | Entered Garrison 4044 | -7/Garrison | Accompanied by 1 ally 4050 | -7/Garrison | Triggered checkpoint 4074 | -7/Garrison | Expanded RIF knowledge: Alert ID Control 4079 | -7/Garrison | Garrison Relay disabled 4140 | -7/Garrison | Triggered checkpoint 4148 | -7/Garrison | Triggered checkpoint 4188 | -7/Garrison | Lost 3 allies 4217 | -7/Garrison | Destroyed 7 combat bots 4225 | -7/Garrison | Lost 4 parts (1p2n1u) 4354 | -7/Garrison | Triggered checkpoint 4387 | -7/Garrison | Garrison Relay disabled 4418 | -7/Garrison | Discovered new exit (range 7) 4495 | -7/Garrison | Phase Generator disabled 4619 | -7/Garrison | Expanded RIF knowledge: Patrol Navigation 4706 | -7/Garrison | Triggered checkpoint 4773 | -7/Garrison | Garrison Relay disabled 4868 | -7/Garrison | Discovered new exit (range 10) 4880 | -7/Garrison | Entered Factory 5083 | -7/Factory | Build established: Botlord-Mutant 5174 | -7/Factory | Discovered new exit (range 16) 5301 | -7/Factory | Identified exit to Garrison 5302 | -7/Factory | Entered Garrison 5302 | -7/Garrison | Accompanied by 2 allies 5318 | -7/Garrison | Triggered checkpoint 5344 | -7/Garrison | Garrison Relay disabled 5434 | -7/Garrison | Triggered checkpoint 5467 | -7/Garrison | Triggered checkpoint 5468 | -7/Garrison | Lost 3 parts (1p1n1u) 5495 | -7/Garrison | Destroyed 11 combat bots 5569 | -7/Garrison | Lost 3 parts (1n1u1w) 5569 | -7/Garrison | Core integrity fell below 50% 5669 | -7/Garrison | Discovered new exit (range 8) 5694 | -7/Garrison | Entered Factory 5694 | -6/Factory | Evolved 2 slots: Utility x1, Weapon x1 5794 | -6/Factory | Lost 3 parts (1u2w) 5841 | -6/Factory | Core integrity fell below 50% 5861 | -6/Factory | Lost 3 parts (1n2w) 5901 | -6/Factory | System corruption reached 10% 5933 | -6/Factory | System corruption reached 30% 6060 | -6/Factory | Garrison activated, responded to threat 6145 | -6/Factory | Lost 3 parts (1n1u1w) 6188 | -6/Factory | Identified exit to Garrison 6188 | -6/Factory | Entered Garrison 6188 | -6/Garrison | Accompanied by 1 ally 6193 | -6/Garrison | Spotted B-75 Beast 6198 | -6/Garrison | Garrison Relay disabled 6214 | -6/Garrison | Triggered checkpoint 6251 | -6/Garrison | Core integrity fell below 20% 6319 | -6/Garrison | Expanded RIF knowledge: Threat Obfuscation 6463 | -6/Garrison | Spotted B-75 Beast 6466 | -6/Garrison | Assimilated B-75 Beast with FLK Orb 6468 | -6/Garrison | Triggered checkpoint 6504 | -6/Garrison | Triggered checkpoint 6509 | -6/Garrison | Garrison Relay disabled 6522 | -6/Garrison | Triggered checkpoint 6617 | -6/Garrison | Discovered new exit (range 14) 6632 | -6/Garrison | Entered Factory 6695 | -6/Factory | Identified exit to DSF 6695 | -6/Factory | Entered DSF 6723 | -6/DSF | Assimilated H-61 Shepherd with FLK Orb 6726 | -6/DSF | Additional patrols routed to DSF 6728 | -6/DSF | Assimilated C-17 Slicer with FLK Orb 6732 | -6/DSF | Assimilated C-17 Slicer with FLK Orb 6754 | -6/DSF | Lost 4 parts (1p1n2u) 6785 | -6/DSF | Discovered new exit (range 16) 6846 | -6/DSF | Entered Factory 6846 | -5/Factory | Accompanied by 2 allies 6846 | -5/Factory | Evolved 2 slots: Propulsion x1, Utility x1 7017 | -5/Factory | Build established: Wizard-Sprinter 7021 | -5/Factory | Garrison activated, responded to threat 7051 | -5/Factory | Identified exit to Garrison 7051 | -5/Factory | Entered Garrison 7073 | -5/Garrison | Triggered checkpoint 7084 | -5/Garrison | Triggered checkpoint 7147 | -5/Garrison | Lost 4 parts (4n) 7443 | -5/Garrison | Build established: Wizard-Skirmisher 7658 | -5/Garrison | Spotted B-75 Beast 7704 | -5/Garrison | Destroyed B-75 Beast 7742 | -5/Garrison | Triggered checkpoint 8167 | -5/Garrison | Triggered checkpoint 8183 | -5/Garrison | Triggered checkpoint 8261 | -5/Garrison | Garrison Relay disabled 8350 | -5/Garrison | Triggered checkpoint 8383 | -5/Garrison | Triggered checkpoint 8433 | -5/Garrison | Lost 3 allies 8454 | -5/Garrison | Triggered checkpoint 8485 | -5/Garrison | Destroyed 7 combat bots 8500 | -5/Garrison | Spotted B-90 Cyclops 8505 | -5/Garrison | Spotted B-86 Titan 8532 | -5/Garrison | Assimilated Cyclops 6a with formatsys_high 8573 | -5/Garrison | Rewired B-90 Cyclops 8576 | -5/Garrison | Allies destroyed B-86 Titan 8637 | -5/Garrison | Found Hvy. Reflective Plating 8733 | -5/Garrison | Discovered new exit (range 9) 8751 | -5/Garrison | Garrison Relay disabled 8943 | -5/Garrison | Entered Factory 8943 | -5/Factory | Accompanied by 2 allies 9050 | -5/Factory | Build established: Bothacker-Skirmisher 9110 | -5/Factory | Identified exit to Garrison 9141 | -5/Factory | Entered Garrison 9141 | -5/Garrison | Accompanied by 2 allies 9159 | -5/Garrison | Triggered checkpoint 9176 | -5/Garrison | Garrison Relay disabled 9366 | -5/Garrison | Spotted Striker 9366 | -5/Garrison | Spotted Striker 9403 | -5/Garrison | Allies destroyed Striker 9446 | -5/Garrison | Destroyed Striker 9538 | -5/Garrison | Expanded RIF knowledge: Autooverride 9587 | -5/Garrison | Triggered checkpoint 9600 | -5/Garrison | Discovered new exit (range 10) 9615 | -5/Garrison | Entered Factory 9776 | -5/Factory | Spotted B-75 Beast 9790 | -5/Factory | Destroyed B-75 Beast 9863 | -5/Factory | Build established: Botlord-Skirmisher 10041 | -5/Factory | Lost 4 parts (1p1n2u) 10074 | -5/Factory | Identified exit to Upper Caves 10074 | -5/Factory | Identified exit to Extension 10162 | -5/Factory | Found Hvy. Insulated Plating 10319 | -5/Factory | Discovered new exit (range 5) 10324 | -5/Factory | Entered another Factory area 10324 | -4/Factory | Evolved 2 slots: Power x1, Utility x1 10471 | -4/Factory | Build established: Tank 10647 | -4/Factory | Lost 9 parts (1n6u2w) 10678 | -4/Factory | System corruption reached 10% 10809 | -4/Factory | Found Prototype Processor 10809 | -4/Factory | Identified Exp. Signal Interpreter 10895 | -4/Factory | Garrison activated, responded to threat 10937 | -4/Factory | Destroyed 7 combat bots 10939 | -4/Factory | Lost 6 parts (2p1n2u1w) 10944 | -4/Factory | Discovered new exit (range 9) 10968 | -4/Factory | Entered Upper Caves 11253 | -4/Upper Caves | Build established: Scavenger-Gunner 11319 | -4/Upper Caves | Discovered new exit (range 15) 11334 | -4/Upper Caves | Entered another Upper Caves area 11506 | -4/Upper Caves | Learned location of 1 exit from Proximity Caves 11559 | -4/Upper Caves | Attracted the attention of an 0b10 checkpoint 11596 | -4/Upper Caves | Discovered new exit (range 8) 11657 | -4/Upper Caves | Entered Zhirov 11659 | -4/Zhirov | Discovered new exit (range 3) 11680 | -4/Zhirov | Met Zhirov 11710 | -4/Zhirov | Learned location of Quarantine (-2) 11710 | -4/Zhirov | Learned location of Testing (-3) 11710 | -4/Zhirov | Learned location of Command (-1) 11716 | -4/Zhirov | Zhirov requested help retrieving the SGEMP Prototype 11733 | -4/Zhirov | Found Alien Artifact 11733 | -4/Zhirov | Identified Integrated Dissipator 11733 | -4/Zhirov | Installed Integrated Dissipator, increased core heat dissipation (+20) 11747 | -4/Zhirov | Found Alien Artifact 11858 | -4/Zhirov | Entered Proximity Caves 11859 | -3/Proximity Caves | Identified exit to Research 12203 | -3/Proximity Caves | Build established: Hacker-Tank 12430 | -3/Proximity Caves | Entered Research 12430 | -3/Research | Evolved 2 slots: Propulsion x1, Utility x1 12463 | -3/Research | Identified Transdimensional Reconstructor 12906 | -3/Research | Build established: Hacker-Mutant 13005 | -3/Research | Lost 7 parts (2n3u2w) 13077 | -3/Research | Discovered new exit (range 7) 13110 | -3/Research | Entered another Research area 13110 | -2/Research | Evolved 2 slots: Propulsion x1, Weapon x1 13195 | -2/Research | Spotted B-90 Cyclops 13248 | -2/Research | Spotted B-90 Cyclops 13270 | -2/Research | Warped through subspace 13289 | -2/Research | Identified exit to Garrison 13289 | -2/Research | Entered Garrison 13470 | -2/Garrison | Spotted B-90 Cyclops 13535 | -2/Garrison | Lost 3 parts (2n1u) 13552 | -2/Garrison | Spotted B-90 Cyclops 13552 | -2/Garrison | Spotted B-90 Cyclops 13573 | -2/Garrison | Lost 5 parts (1p3n1u) 13615 | -2/Garrison | Triggered checkpoint 13622 | -2/Garrison | Triggered checkpoint 13646 | -2/Garrison | Core integrity fell below 50% 13669 | -2/Garrison | Discovered new exit (range 10) 13674 | -2/Garrison | Entered Access 13674 | -1/Access | Evolved 2 slots: Utility x1, Weapon x1 13697 | -1/Access | Lost 6 parts (2n3u1w) 13704 | -1/Access | Found Prototype Protection 13708 | -1/Access | Identified exit to Garrison 13708 | -1/Access | Entered Garrison 13708 | -1/Garrison | Identified Centrium Heavy Armor Plating 13757 | -1/Garrison | Garrison Relay disabled 13764 | -1/Garrison | Self-destructed Last Messages --------------- 13689_ ALERT: Suspicious activity at Recycling Unit A003. Dispatching Investigation squad. 13693_ Recycling Unit disabled. 13704_ Acquired Prototype Protection. 13705_ Broken Kinetic Spear destroyed. 13708_ Connecting with Garrison Access... >>Unlock Access door unlocked. 13708_ EXIT=UNLOCKED: GARRISON LOCATION=GARRISON GOAL=ESCAPE 13708_ Receiving FarCom transmissions... 13708_ Identified Centrium Heavy Armor Plating. 13729_ Critical hit (Burn: +37). 13757_ Garrison Relay disabled. 13757_ Unknown Hackware tumbles out of relay unit. 13757_ Relay Coupler [Specialist] tumbles out of relay unit. 13757_ Relay Coupler [Sentry] tumbles out of relay unit. 13760_ Acquired Unknown Hackware. 13760_ Identified Relay Coupler [Swarmer]. Map ----- +----------------------------------------------------+ | ??????????????????????????????????????????? | | ??????????????????????????????????????????? | | ??????????????????????????????????????????? | | ??????????????????????????????????????????? | | ??????????????????????????????????????????? | | ??????????????????????????????????????????? | | ??????????????????????????????????????????? | | ??????????????????????????????????????????? | | ??????????????????????????????????????????? | | ??????????????????????????????????????????? | | ??????????????????????????????????????????? | | ??????????????????????????????????????????? | | ??????????????????????????????????????????? | | ??????????????????????????????????????????? | | ??????????????????????????????????????????? | | ??????????????????????????????????????????? | | ??????????????????????????????????????????? | | ??????????????????????????????????????????? | | ??????????????????????????????????????????? | | ??????????????????????????????????????????? | | ??????????????????????????????????????????? | | ??????????????????????????????????????????? | | ???????????????????????????????????g??????? | | ????????????????##################g####???? | | ??????????????### / / b ??? | | ??????????????#"# @g g ??? | | ??????????????#" ### ??? | | ??????????????#" ! #?# b ########?????????? | | ??????????????# ! #?# #????????????????? | | ??????????????#"# #?# #????????????????? | | ??????????????### #?# #????????????????? | | ????????????????# #?# #????????????????? | | ????????????????# #?# #????????????????? | | ????????????????# #?# #????????????????? | | ????????????????" g#?# #????????????????? | | ??????????????gg" +?# #????????????????? | | ????????????????" #?# #????????????????? | | ????????????????# #?# #????????????????? | | ????????????????# #?# #????????????????? | | ????????????????# ### #????????????????? | | ????????????????# #????????????????? | | ????????????????# #????????????????? | | ????????????????###### #????????????????? | | ?????????????????????# #????????????????? | | ?????????????????????# #????????????????? | | ??????????############ #????????????????? | | ??????????# #????????????????? | | ??????????# #????????????????? | | ??????????# #????????????????? | | ??????????################????????????????? | +----------------------------------------------------+ Best States ------------- Heat Dissipation 102 Energy Generation 43 Energy Capacity 1280 Matter Stores 544 Matter Capacity 600 Sight Range 20 Terrain Scan Density 110 Jamming Range 14 Armor Coverage 825 Resistance: TH 30 Resistance: EX 50 Resistance: EM 30 Power Shielding 66 Propulsion Shielding 66 Phase Shifting 15 Evasion (%) 74 Target Analysis 11 Recoil Reduction 5 Kinecelleration 30 Offensive Hacking 30 Defensive Hacking 70 Relay Coupler Types 6 Relay Coupler Value 184 Authchip Count 1 Item Schematics ----------------- Med. Insulated Plating | -7/Factory | Scanalyzed Plasma Cutter | -7/Factory | Scanalyzed Armor Integrity Analyzer | -7/Factory | Extracted Assault Drone Bay | -4/Zhirov | Free Exp. Heat Sink | -4/Zhirov | Free Exp. Optical Array | -4/Zhirov | Free Imp. Arc Thrower | -4/Zhirov | Free Enh. Gauss Cannon | -3/Research | Extracted Robot Schematics ------------------ K-01 Serf | -5/Factory | Hacked Fabricated ------------ Nothing Alien Tech Used ----------------- Integrated Dissipator Transdimensional Reconstructor Achievements -------------- None Challenges ------------ None Game ------ Seed RestorationPhasingInverter Manual? 0 Play Time 01:54:28 Cumulative 927.2 hours Start 2024.09.07 @ 22:05:40 End 2024.09.08 @ 14:20:00 Sessions 3 Manual Loads 0 Difficulty Rogue Special Mode None Game No. 1124 Rogue 844 Adventurer 124 Explorer 156 Win Type - Total 39 Types 28/0/8/1/1/0/0/1/0 Lore% 81 Gallery% 90 Achievement% 78 Wizard Run 0 Options --------- Layout 0 ASCII 0 Keyboard 1 Movement Numpad Keybinds 0 Fullscreen 2 Font 18/X11 Map View 76x50 Zoom Use 0% Tactical HUD 1 Map Filters NONE Filters NONE Steam 1 RUN: d2d5c9c7-13f1-4acb-9820-1df5c970c26c